Workbook

Sheet PIC

Sheet CLOSE

Sheet FORMAT_Intro
B3: The FORMAT function of CHART-ME enables easy formating via cell formats for
B4: - Data series in order to color each data point
B5: - Data labels in order to format each data label
B6: - Axes labes
B8: This is a free software version designated for participants of our course
B9: "Professional Business Charts with MS Excel".
B11: 2007-11-20
B12: All rights reserved.
B13: Holger Gerths and Rolf Hichert
B14: info@gerths.de
B15: info@hichert.com
B17: ---> Start Documentation

Sheet FORMAT_Infos
A1: Stand: 20.11.2007
C2: CHART-ME ist ein Add-In, um für Excel-Diagramme einige Funktionen ausführen zu können, die ohne VBA nicht oder nur mit recht viel Aufwand realisierbar sind.
C3: Die erste Funktion ist FORMAT, die nachfolgend kurz beschrieben ist.
C4: Allgemeines Ziel der Funktion FORMAT ist es, Formatierungen von Datenreihen und deren Bezeichnungen über die Formatierung zugeordneter Zellen ausführen zu können.
C5: Diese Version von CHART-ME steht unseren Seminarteilnehmern zur kostenlosen Nutzung zur Verfügung.
C6: Neuigkeiten zu diesem Thema erfahren Sie bei www.chart-me.com oder über unseren Newsletter, http://newsletter.hichert.com
A7: Installation | C7: Bis Excel 2003 erkennen Sie ein Excel Add-In an der Dateierweiterung "xla".
C8: Add-In-Dateien können für eine Installation zwar in einem beliebigen Verzeichnis liegen, besonders einfach ist es aber, wenn man ein Add-in im Standardverzeichnis für Add-ins lädt: …/Anwendungsdaten/Microsoft/AddIns
A9: Schritt 1 | C9: Kopieren Sie die xla-Datei in das Standardverzeichnis AddIns.
A10: Schritt 2 | C10: Öffnen Sie in Excel das Menü Extras / AddIns...
A11: Schritt 3 | C11: Nun öffnet sich das Formular "Add-Ins". Dort setzen Sie einen Haken bei der gerade geladenen Datei von CHART-ME und bestätigen Sie mit ok.
C12: Damit ist das Add-In fertig installiert.
C13: Befindet sich die gewünschte Add-In-Datei nicht im Standardverzeichnis für Add-Ins, wird das Add-In nicht in der Auswahl angezeigt. Sie müssen es erst über "Durchsuchen" hinzufügen.
C14: Zur De-Installation wird der Haken einfach wieder entfernt und mit ok bestätigt.
C15: Die Add-In-Datei kann dann gelöscht werden, muss aber nicht.
A17: Bedienung | C17: Die Bedienung ist einfach und geht schnell. Dennoch sind ein paar Punkte zu beachten.
A18: Vorbereitung | C18: Es stehen ein Excel-Diagramm und die dazu gehörenden Datenreihen zur Verfügung.
A19: Schritt 1 | C19: Markieren Sie eine Datenreihe (im Namensfeld mit Reihe (engl: series) beginnend), eine Beschriftungsreihe (im Namensfeld mit "…" beginnend) oder eine Achse, die Sie formatieren wollen.
A20: Schritt 2 | C20: Klicken Sie bei FORMAT auf DEFINE CELLS. Mit Hilfe des dann erscheinenden Menüfensters wählen Sie die Zellen aus,
C21: deren Formatierung sie in das Diagramm übernehmen wollen (Farbe bei Datenreihen sowie Schriftfarbe, Schriftgröße und Schriftschnitt bei Datenreihenbezeichnungen und Achsenbezeichnungen)
A22: Schritt 3 | C22: Klicken Sie bei FORMAT auf START FORMAT und lösen Sie die Formatübernahme aus. Fertig!
A23: Hinweise | C23: Wenn auch die Funktion prinzipiell sehr einfach ist, so gibt es doch einige Dinge, die Sie noch wissen sollten:
A24: Hinweis 1 | C24: Bei Datenreihen bestimmter Diagramme (Flächendiagramme) und bei Achsenbezeichnungen werden die Zellformate der ersten ausgewählten Zelle für die gesamte Datenreihe verwendet.
A25: Hinweis 2 | C25: Wenn Sie mehrere Diagramme (mit verschiedenen oder den gleichen Zellbereichen) formatieren wollen, so stellen Sie bitte sicher, dass diese Diagramme vor dem Zuordnungen unterschiedliche Diagrammnamen
C26: (Diagramm mit gedrückter Shift-Taste anklicken, dann sieht man den Diagrammnamen im Namensfeld) haben. Eine nachträgliche Änderung dieser Diagrammnamen führt zum Verlust der ausgewählten Formatzuordnung.
A27: Hinweis 3 | C27: Damit die Zuordnung von Datenreihen und Bezeichnungen und den ausgewählten Zellbereichen eindeutig ist,
C28: legt FORMAT beim Zuordnen die Excel-Namen zugrunde, die Sie bei "Datenquelle" sehen. Eine nachträgliche
C29: Änderung dieser Namen führt zum Verlust der gewählten Formatzuordnung. Wenn derartige Namen später
C30: geändert werden sollen und man sich die erneute Zuordnung mit FORMAT sparen möchte, empfiehlt es sich,
C31: mit dem "="-Zuordnungstrick aus dem Seminar Excel-Diagramme 1 eine von den internen Namen unabhängige
C32: Bezeichnung zu wählen (siehe Beispiele).
A33: Hinweis 4 | C33: CHART-ME verwendet zur Zuordnung die Namen der Tabellenblätter. Wenn Sie diese Namen ändern, verliert CHART-ME die Zuordnung, und Sie müssen mit DEFINE FORMAT neu Datenreihen, Bezeichnungsreihen und Achsen den jeweiligen Zellbereichen zuordnen.
C35: Viel Erfolg mit CHART-ME wünschen Ihnen
C36: Holger Gerths und Rolf Hichert
C37: info@gerths.de und info@hichert.com

Sheet FORMAT_Step 1
B1: You should have access to one or more charts and their data.
B2: ---> Next step

Sheet FORMAT_Step 2a
B1: You can define the link between data series an cells: Select data series first and then click DEFINE FORMAT.
B2: ---> Next step

Sheet FORMAT_Step 2b
B1: In the same way you link data labels to cells.
B2: ---> Next step

Sheet FORMAT_Step 2c
B1: In the same way you might want to link axes labels to cell. Note: The first cell only defines the format of all axes labels!
B2: ---> Next step

Sheet FORMAT_Step 3a
B1: Now you can format the cells the way you wish: Here the cells C5:F5 receive the color red.
B2: ---> Next step

Sheet FORMAT_Step 4a
B1: Now you open START FORMAT…
B2: ---> Next step

Sheet FORMAT_Step 5a
B1: …and you receive the result: The data points as well as the format of data labels and axes labels have been changed!
B2: ---> Next step

Sheet FORMAT_Step 3b
B1: Here you see a second example with a wider variety of formated cells.
B2: ---> Next step

Sheet FORMAT_Step 4b
B1: Again you click START FORMAT...
B2: ---> Next step

Sheet FORMAT_Step 5b
B1: …and you receive the result expected!
B2: Close

Sheet LINK_Step 1
B2: Data Input
C3: A | D3: B | E3: C | F3: D
B4: Mango | C4: 4 | D4: 5 | E4: 6 | F4: 8
B5: Pears | C5: 5 | D5: 6 | E5: 7 | F5: 8
B6: Banana | C6: 8 | D6: 7 | E6: 6 | F6: 5
I8: Scaling
I9: Y | J9: 2
B28: Scaled chart data
C29: =C4*$J$9 -> 8 | D29: 10 | E29: 12 | F29: 16
C30: 10 | D30: 12 | E30: 14 | F30: 16
C31: 16 | D31: 14 | E31: 12 | F31: 10

Sheet LINK_Step 2
B2: Data Input
C3: A | D3: B | E3: C | F3: D
B4: Mango | C4: 4 | D4: 5 | E4: 6 | F4: 8
B5: Pears | C5: 5 | D5: 6 | E5: 7 | F5: 8
B6: Banana | C6: 8 | D6: 7 | E6: 6 | F6: 5
I8: Scaling
I9: Y | J9: 2
B28: Scaled chart data
C29: =C4*$J$9 -> 8 | D29: 10 | E29: 12 | F29: 16
C30: 10 | D30: 12 | E30: 14 | F30: 16
C31: 16 | D31: 14 | E31: 12 | F31: 10

Sheet LINK_Step 3
B2: Data Input
C3: A | D3: B | E3: C | F3: D
B4: Mango | C4: 4 | D4: 5 | E4: 6 | F4: 8
B5: Pears | C5: 5 | D5: 6 | E5: 7 | F5: 8
B6: Banana | C6: 8 | D6: 7 | E6: 6 | F6: 5
I8: Scaling
I9: Y | J9: 2
B28: Scaled chart data
C29: =C4*$J$9 -> 8 | D29: 10 | E29: 12 | F29: 16
C30: 10 | D30: 12 | E30: 14 | F30: 16
C31: 16 | D31: 14 | E31: 12 | F31: 10

Sheet LINK_Step 4
B2: Data Input
C3: A | D3: B | E3: C | F3: D
B4: Mango | C4: 4 | D4: 5 | E4: 6 | F4: 8
B5: Pears | C5: 5 | D5: 6 | E5: 7 | F5: 8
B6: Banana | C6: 8 | D6: 7 | E6: 6 | F6: 5
I8: Scaling
I9: Y | J9: 2
B28: Scaled chart data
C29: =C4*$J$9 -> 8 | D29: 10 | E29: 12 | F29: 16
C30: 10 | D30: 12 | E30: 14 | F30: 16
C31: 16 | D31: 14 | E31: 12 | F31: 10

Sheet MAP_Step 1
B2: Data Input
D3: A | E3: B | F3: C | G3: D
D4: 8 | E4: 5 | F4: 6 | G4: 8
J6: Scale
J7: Y | K7: 40
B25: Scaled data | D25: =D4*$K$7 -> 320 | E25: =E4*$K$7 -> 200 | F25: =F4*$K$7 -> 240 | G25: =G4*$K$7 -> 320
B26: X | D26: 0.5 | E26: =D26+1 -> 1.5 | F26: =E26+1 -> 2.5 | G26: =F26+1 -> 3.5
D28: Cover | J28: X-Axis
J29: 0 | K29: 0
J30: 4 | K30: 0
J32: Cover
J33: X | K33: 2
J34: Y | K34: 0

Sheet MAP_Step 2
B2: Data Input
D3: A | E3: B | F3: C | G3: D
D4: 8 | E4: 5 | F4: 6 | G4: 8
J6: Scale | O6: #1 | V6: #2 | AB6: #3 | AG6: #4 | AK6: #5 | AN6: #6 | AQ6: #7 | AX6: #8 | BD6: #9 | BI6: #10 | BM6: #11 | BP6: #12
J7: Y | K7: 40
B25: Scaled data | D25: =D4*$K$7 -> 320 | E25: =E4*$K$7 -> 200 | F25: =F4*$K$7 -> 240 | G25: =G4*$K$7 -> 320
B26: X | D26: 0.5 | E26: =D26+1 -> 1.5 | F26: =E26+1 -> 2.5 | G26: =F26+1 -> 3.5
D28: Cover | J28: X-Axis
J29: 0 | K29: 0
J30: 4 | K30: 0
J32: Cover
J33: X | K33: 2
J34: Y | K34: 0

Sheet MAP_Step 3
B2: Data Input
D3: A | E3: B | F3: C | G3: D
D4: 8 | E4: 5 | F4: 6 | G4: 8
J6: Scale | O6: #1 | V6: #2 | AB6: #3 | AG6: #4 | AK6: #5 | AN6: #6 | AQ6: #7 | AX6: #8 | BD6: #9 | BI6: #10 | BM6: #11 | BP6: #12
J7: Y | K7: 40
B25: Scaled data | D25: =D4*$K$7 -> 320 | E25: =E4*$K$7 -> 200 | F25: =F4*$K$7 -> 240 | G25: =G4*$K$7 -> 320
B26: X | D26: 0.5 | E26: =D26+1 -> 1.5 | F26: =E26+1 -> 2.5 | G26: =F26+1 -> 3.5
D28: Cover | J28: X-Axis
J29: 0 | K29: 0
J30: 4 | K30: 0
J32: Cover
J33: X | K33: 2
J34: Y | K34: 0

Sheet MAP_Step 4
B2: Data Input
D3: A | E3: B | F3: C | G3: D
D4: 8 | E4: 5 | F4: 6 | G4: 8
J6: Scale | O6: #1 | V6: #2 | AB6: #3 | AG6: #4 | AK6: #5 | AN6: #6 | AQ6: #7 | AX6: #8 | BD6: #9 | BI6: #10 | BM6: #11 | BP6: #12
J7: Y | K7: 40
B25: Scaled data | D25: =D4*$K$7 -> 320 | E25: =E4*$K$7 -> 200 | F25: =F4*$K$7 -> 240 | G25: =G4*$K$7 -> 320
B26: X | D26: 0.5 | E26: =D26+1 -> 1.5 | F26: =E26+1 -> 2.5 | G26: =F26+1 -> 3.5
D28: Cover | J28: X-Axis
J29: 0 | K29: 0
J30: 4 | K30: 0
J32: Cover
J33: X | K33: 2
J34: Y | K34: 0

Sheet MAP_Step 5
B2: Data Input
D3: A | E3: B | F3: C | G3: D
D4: 8 | E4: 5 | F4: 6 | G4: 8
J6: Scale | O6: #1 | V6: #2 | AB6: #3 | AG6: #4 | AK6: #5 | AN6: #6 | AQ6: #7 | AX6: #8 | BD6: #9 | BI6: #10 | BM6: #11 | BP6: #12
J7: Y | K7: 40
B25: Scaled data | D25: =D4*$K$7 -> 320 | E25: =E4*$K$7 -> 200 | F25: =F4*$K$7 -> 240 | G25: =G4*$K$7 -> 320
B26: X | D26: 0.5 | E26: =D26+1 -> 1.5 | F26: =E26+1 -> 2.5 | G26: =F26+1 -> 3.5
D28: Cover | J28: X-Axis
J29: 0 | K29: 0
J30: 4 | K30: 0
J32: Cover
J33: X | K33: 2
J34: Y | K34: 0

Sheet MAP_Step 6
B2: Data Input
D3: A | E3: B | F3: C | G3: D
D4: 8 | E4: 5 | F4: 6 | G4: 8
J6: Scale | O6: #1 | V6: #2 | AB6: #3 | AG6: #4 | AK6: #5 | AN6: #6 | AQ6: #7 | AX6: #8 | BD6: #9 | BI6: #10 | BM6: #11 | BP6: #12
J7: Y | K7: 40
B25: Scaled data | D25: =D4*$K$7 -> 320 | E25: =E4*$K$7 -> 200 | F25: =F4*$K$7 -> 240 | G25: =G4*$K$7 -> 320
B26: X | D26: 0.5 | E26: =D26+1 -> 1.5 | F26: =E26+1 -> 2.5 | G26: =F26+1 -> 3.5
D28: Cover | J28: X-Axis
J29: 0 | K29: 0
J30: 4 | K30: 0
J32: Cover
J33: X | K33: 2
J34: Y | K34: 0

Sheet MAP_Step 7
B2: Data Input
D3: A | E3: B | F3: C | G3: D
D4: 8 | E4: 5 | F4: 6 | G4: 8
J6: Scale | O6: #1 | V6: #2 | AB6: #3 | AG6: #4 | AK6: #5 | AN6: #6 | AQ6: #7 | AX6: #8 | BD6: #9 | BI6: #10 | BM6: #11 | BP6: #12
J7: Y | K7: 40
B25: Scaled data | D25: =D4*$K$7 -> 320 | E25: =E4*$K$7 -> 200 | F25: =F4*$K$7 -> 240 | G25: =G4*$K$7 -> 320
B26: X | D26: 0.5 | E26: =D26+1 -> 1.5 | F26: =E26+1 -> 2.5 | G26: =F26+1 -> 3.5
D28: Cover | J28: X-Axis
J29: 0 | K29: 0
J30: 4 | K30: 0
J32: Cover
J33: X | K33: 2
J34: Y | K34: 0

Sheet MAP_Step 8
B2: Data Input
D3: A | E3: B | F3: C | G3: D
D4: 8 | E4: 5 | F4: 6 | G4: 8
J6: Scale | O6: #1 | V6: #2 | AB6: #3 | AG6: #4 | AK6: #5 | AN6: #6 | AQ6: #7 | AX6: #8 | BD6: #9 | BI6: #10 | BM6: #11 | BP6: #12
J7: Y | K7: 40
B25: Scaled data | D25: =D4*$K$7 -> 320 | E25: =E4*$K$7 -> 200 | F25: =F4*$K$7 -> 240 | G25: =G4*$K$7 -> 320
B26: X | D26: 0.5 | E26: =D26+1 -> 1.5 | F26: =E26+1 -> 2.5 | G26: =F26+1 -> 3.5
D28: Cover | J28: X-Axis
J29: 0 | K29: 0
J30: 4 | K30: 0
J32: Cover
J33: X | K33: 2
J34: Y | K34: 0

Sheet SIZE_Step 1
A1: 96dpi | B1: 1

Sheet SIZE_Step 2
A1: 96dpi | B1: 10

Sheet SIZE_Step 3
A1: 96dpi | B1: 10 | C1: 80

Sheet SIZE_Step 4
A1: 96dpi | B1: 10 | C1: 80

Sheet SIZE_Step 5
A1: 96dpi | B1: 10 | C1: 80 | D1: 42 | E1: 42

Sheet SIZE_Step 6
A1: 96dpi | B1: 10 | C1: 80 | D1: 74 | E1: 42
A2: =$D$1 -> 74

Sheet SIZE_Step 7
A1: 96dpi | B1: 10 | C1: 80 | D1: 74 | E1: 42
A2: =$D$1 -> 74

Sheet SIZE_Example Caro
A1: 96dpi | B1: 10 | C1: =$B$1 -> 10 | D1: 10 | E1: 10 | F1: 10 | G1: 10 | H1: 10 | I1: 10 | J1: 10 | K1: 10 | L1: 10 | M1: 10 | N1: 10 | O1: 10 | P1: 10 | Q1: 10 | R1: 10 | S1: 10 | T1: 10 | U1: 10 | V1: 10 | W1: 10 | X1: 10 | Y1: 10 | Z1: 10 | AA1: 10 | AB1: 10 | AC1: 10 | AD1: 10 | AE1: 10 | AF1: 10 | AG1: 10 | AH1: 10 | AI1: 10 | AJ1: 10 | AK1: 10 | AL1: 10 | AM1: 10 | AN1: 10 | AO1: 10 | AP1: 10 | AQ1: 10 | AR1: 10 | AS1: 10 | AT1: 10 | AU1: 10 | AV1: 10 | AW1: 10 | AX1: 10 | AY1: 10 | AZ1: 10 | BA1: 10 | BB1: 10 | BC1: 10 | BD1: 10 | BE1: 10 | BF1: 10 | BG1: 10 | BH1: 10 | BI1: 10 | BJ1: 10 | BK1: 10 | BL1: 10 | BM1: 10 | BN1: 10 | BO1: =$B$1 -> 10 | BP1: 10 | BQ1: 10 | BR1: 10 | BS1: 10 | BT1: 10 | BU1: 10 | BV1: 10 | BW1: 10 | BX1: 10 | BY1: 10 | BZ1: 10 | CA1: 10 | CB1: 10 | CC1: 10 | CD1: 10 | CE1: 10 | CF1: 10 | CG1: 10 | CH1: 10 | CI1: 10 | CJ1: 10 | CK1: 10 | CL1: 10 | CM1: 10 | CN1: 10 | CO1: 10 | CP1: 10 | CQ1: 10 | CR1: 10 | CS1: 10 | CT1: 10 | CU1: 10 | CV1: 10 | CW1: 10 | CX1: 10 | CY1: 10 | CZ1: 10 | DA1: 10 | DB1: 10 | DC1: 10 | DD1: 10 | DE1: 10 | DF1: 10 | DG1: 10 | DH1: 10 | DI1: 10 | DJ1: 10 | DK1: 10 | DL1: 10 | DM1: 10 | DN1: 10 | DO1: 10 | DP1: 10 | DQ1: 10 | DR1: 10 | DS1: 10 | DT1: 10 | DU1: 10 | DV1: 10 | DW1: 10 | DX1: 10 | DY1: 10 | DZ1: 10 | EA1: =$B$1 -> 10 | EB1: 10 | EC1: 10 | ED1: 10 | EE1: 10 | EF1: 10 | EG1: 10 | EH1: 10 | EI1: 10 | EJ1: 10 | EK1: 10 | EL1: 10 | EM1: 10 | EN1: 10 | EO1: 10 | EP1: 10 | EQ1: 10 | ER1: 10 | ES1: 10 | ET1: 10 | EU1: 10 | EV1: 10 | EW1: 10 | EX1: 10 | EY1: 10 | EZ1: 10 | FA1: 10 | FB1: 10 | FC1: 10 | FD1: 10 | FE1: 10 | FF1: 10 | FG1: 10 | FH1: 10 | FI1: 10 | FJ1: 10 | FK1: 10 | FL1: 10 | FM1: 10 | FN1: 10 | FO1: 10 | FP1: 10 | FQ1: 10 | FR1: 10 | FS1: 10 | FT1: 10 | FU1: 10 | FV1: 10 | FW1: 10 | FX1: 10 | FY1: 10 | FZ1: 10 | GA1: 10 | GB1: 10 | GC1: 10 | GD1: 10 | GE1: 10 | GF1: 10 | GG1: 10 | GH1: 10 | GI1: 10 | GJ1: 10 | GK1: 10 | GL1: 10 | GM1: =$B$1 -> 10 | GN1: 10 | GO1: 10 | GP1: 10 | GQ1: 10 | GR1: 10 | GS1: 10 | GT1: 10 | GU1: 10 | GV1: 10 | GW1: 10 | GX1: 10 | GY1: 10 | GZ1: 10 | HA1: 10 | HB1: 10 | HC1: 10 | HD1: 10 | HE1: 10 | HF1: 10 | HG1: 10 | HH1: 10 | HI1: 10 | HJ1: 10 | HK1: 10 | HL1: 10 | HM1: 10 | HN1: 10 | HO1: 10 | HP1: 10 | HQ1: 10 | HR1: 10 | HS1: 10 | HT1: 10 | HU1: 10 | HV1: 10 | HW1: 10 | HX1: 10 | HY1: 10 | HZ1: 10 | IA1: 10 | IB1: 10 | IC1: 10 | ID1: 10 | IE1: 10 | IF1: 10 | IG1: 10 | IH1: 10 | II1: 10 | IJ1: 10 | IK1: 10 | IL1: 10 | IM1: 10 | IN1: 10 | IO1: 10 | IP1: 10 | IQ1: 10 | IR1: 10 | IS1: 10 | IT1: 10 | IU1: 10 | IV1: 10
A2: =$B$1 -> 10
A3: 10
A4: 10
A5: 10
A6: 10
A7: 10
A8: 10
A9: 10
A10: 10
A11: 10
A12: 10
A13: 10
A14: 10
A15: 10
A16: 10
A17: 10
A18: 10
A19: 10
A20: 10
A21: 10
A22: 10
A23: 10
A24: 10
A25: 10
A26: 10
A27: 10
A28: 10
A29: 10
A30: 10
A31: 10
A32: 10
A33: 10
A34: 10
A35: 10
A36: 10
A37: 10
A38: 10
A39: 10
A40: 10
A41: 10
A42: 10
A43: 10
A44: 10
A45: 10
A46: 10
A47: 10
A48: 10
A49: 10
A50: 10
A51: 10
A52: 10
A53: 10
A54: 10
A55: 10
A56: 10
A57: 10
A58: 10
A59: 10
A60: 10
A61: 10
A62: 10
A63: 10
A64: 10
A65: 10
A66: =$B$1 -> 10
A67: 10
A68: 10
A69: 10
A70: 10
A71: 10
A72: 10
A73: 10
A74: 10
A75: 10
A76: 10
A77: 10
A78: 10
A79: 10
A80: 10
A81: 10
A82: 10
A83: 10
A84: 10
A85: 10
A86: 10
A87: 10
A88: 10
A89: 10
A90: 10
A91: 10
A92: 10
A93: 10
A94: 10
A95: 10
A96: 10
A97: 10
A98: 10
A99: 10
A100: 10
A101: 10
A102: 10
A103: 10
A104: 10
A105: 10
A106: 10
A107: 10
A108: 10
A109: 10
A110: 10
A111: 10
A112: 10
A113: 10
A114: 10
A115: 10
A116: 10
A117: 10
A118: 10
A119: 10
A120: 10
A121: 10
A122: 10
A123: 10
A124: 10
A125: 10
A126: 10
A127: 10
A128: 10
A129: 10
A130: =$B$1 -> 10
A131: 10
A132: 10
A133: 10
A134: 10
A135: 10
A136: 10
A137: 10
A138: 10
A139: 10
A140: 10
A141: 10
A142: 10
A143: 10
A144: 10
A145: 10
A146: 10
A147: 10
A148: 10
A149: 10
A150: 10
A151: 10
A152: 10
A153: 10
A154: 10
A155: 10
A156: 10
A157: 10
A158: 10
A159: 10
A160: 10
A161: 10
A162: 10
A163: 10
A164: 10
A165: 10
A166: 10
A167: 10
A168: 10
A169: 10
A170: 10
A171: 10
A172: 10
A173: 10
A174: 10
A175: 10
A176: 10
A177: 10
A178: 10
A179: 10
A180: 10
A181: 10
A182: 10
A183: 10
A184: 10
A185: 10
A186: 10
A187: 10
A188: 10
A189: 10
A190: 10
A191: 10
A192: 10
A193: 10
A194: =$B$1 -> 10
A195: 10
A196: 10
A197: 10
A198: 10
A199: 10
A200: 10
... 800 more rows

Sheet SIZE_Example Inch
A1: inch | B1: 1.11 | C1: 0.35 | D1: 0.35 | E1: 0.35 | F1: 0.35
A2: 0.41
A3: 0.41
A4: 0.41
A5: 0.41
A6: 0.41
A7: 0.41
A8: 0.41
A9: 0.41
A10: 0.41
A11: 0.41
A12: 0.41

Sheet SIZE_Exmple mm
A1: mm | B1: 5.03 | C1: =B1+0.01 -> 5.04 | D1: 5.05 | E1: 5.06 | F1: 5.07 | G1: 5.08 | H1: 5.09 | I1: 5.1 | J1: 5.11 | K1: 5.12 | L1: 5.13 | M1: 5.14 | N1: 5.15 | O1: 5.16 | P1: 5.17 | Q1: 5.18 | R1: 5.19 | S1: 5.2 | T1: 5.21 | U1: 5.22 | V1: 5.23 | W1: 5.24 | X1: 5.25 | Y1: 5.26 | Z1: 5.27 | AA1: 5.28 | AB1: 5.29 | AC1: 5.3 | AD1: 5.31 | AE1: 5.32 | AF1: 5.33 | AG1: 5.34 | AH1: 5.35 | AI1: 5.36 | AJ1: 5.37 | AK1: 5.38 | AL1: 5.39 | AM1: 5.4 | AN1: 5.41 | AO1: 5.42 | AP1: 5.43 | AQ1: 5.44 | AR1: 5.45 | AS1: 5.46 | AT1: 5.47 | AU1: 5.48 | AV1: 5.49 | AW1: 5.5 | AX1: 5.51 | AY1: 5.52 | AZ1: 5.53 | BA1: 5.54 | BB1: 5.55 | BC1: 5.56 | BD1: 5.57 | BE1: 5.58 | BF1: 5.59 | BG1: 5.6 | BH1: 5.61 | BI1: 5.62 | BJ1: 5.63 | BK1: 5.64 | BL1: 5.65 | BM1: 5.66 | BN1: 5.67 | BO1: =BN1+0.01 -> 5.68 | BP1: 5.69 | BQ1: 5.7 | BR1: 5.71 | BS1: 5.72 | BT1: 5.73 | BU1: 5.74 | BV1: 5.75 | BW1: 5.76 | BX1: 5.77 | BY1: 5.78 | BZ1: 5.79 | CA1: 5.8 | CB1: 5.81 | CC1: 5.82 | CD1: 5.83 | CE1: 5.84 | CF1: 5.85 | CG1: 5.86 | CH1: 5.87 | CI1: 5.88 | CJ1: 5.89 | CK1: 5.9 | CL1: 5.91 | CM1: 5.92 | CN1: 5.93 | CO1: 5.94 | CP1: 5.95 | CQ1: 5.96 | CR1: 5.97 | CS1: 5.98 | CT1: 5.99 | CU1: 6 | CV1: 6.01 | CW1: 6.02 | CX1: 6.03 | CY1: 6.04 | CZ1: 6.05 | DA1: 6.06 | DB1: 6.07 | DC1: 6.08 | DD1: 6.09 | DE1: 6.1 | DF1: 6.11 | DG1: 6.12 | DH1: 6.13 | DI1: 6.14 | DJ1: 6.15 | DK1: 6.16 | DL1: 6.17 | DM1: 6.18 | DN1: 6.19 | DO1: 6.2 | DP1: 6.21 | DQ1: 6.22 | DR1: 6.23 | DS1: 6.24 | DT1: 6.25 | DU1: 6.26 | DV1: 6.27 | DW1: 6.28 | DX1: 6.29 | DY1: 6.3 | DZ1: 6.31 | EA1: =DZ1+0.01 -> 6.32 | EB1: 6.33 | EC1: 6.34 | ED1: 6.35 | EE1: 6.36 | EF1: 6.37 | EG1: 6.38 | EH1: 6.39 | EI1: 6.4 | EJ1: 6.41 | EK1: 6.42 | EL1: 6.43 | EM1: 6.44 | EN1: 6.45 | EO1: 6.46 | EP1: 6.47 | EQ1: 6.48 | ER1: 6.49 | ES1: 6.5 | ET1: 6.51 | EU1: 6.52 | EV1: 6.53 | EW1: 6.54 | EX1: 6.55 | EY1: 6.56 | EZ1: 6.57 | FA1: 6.58 | FB1: 6.59 | FC1: 6.6 | FD1: 6.61 | FE1: 6.62 | FF1: 6.63 | FG1: 6.64 | FH1: 6.65 | FI1: 6.66 | FJ1: 6.67 | FK1: 6.68 | FL1: 6.69 | FM1: 6.7 | FN1: 6.71 | FO1: 6.72 | FP1: 6.73 | FQ1: 6.74 | FR1: 6.75 | FS1: 6.76 | FT1: 6.77 | FU1: 6.78 | FV1: 6.79 | FW1: 6.8 | FX1: 6.81 | FY1: 6.82 | FZ1: 6.83 | GA1: 6.84 | GB1: 6.85 | GC1: 6.86 | GD1: 6.87 | GE1: 6.88 | GF1: 6.89 | GG1: 6.9 | GH1: 6.91 | GI1: 6.92 | GJ1: 6.93 | GK1: 6.94 | GL1: 6.95 | GM1: =GL1+0.01 -> 6.96 | GN1: 6.97 | GO1: 6.98 | GP1: 6.99 | GQ1: 7 | GR1: 7.01 | GS1: 7.02 | GT1: 7.03 | GU1: 7.04 | GV1: 7.05 | GW1: 7.06 | GX1: 7.07 | GY1: 7.08 | GZ1: 7.09 | HA1: 7.1 | HB1: 7.11 | HC1: 7.12 | HD1: 7.13 | HE1: 7.14 | HF1: 7.15 | HG1: 7.16 | HH1: 7.17 | HI1: 7.18 | HJ1: 7.19 | HK1: 7.2 | HL1: 7.21 | HM1: 7.22 | HN1: 7.23 | HO1: 7.24 | HP1: 7.25 | HQ1: 7.26 | HR1: 7.27 | HS1: 7.28 | HT1: 7.29 | HU1: 7.3 | HV1: 7.31 | HW1: 7.32 | HX1: 7.33 | HY1: 7.34 | HZ1: 7.35 | IA1: 7.36 | IB1: 7.37 | IC1: 7.38 | ID1: 7.39 | IE1: 7.4 | IF1: 7.41 | IG1: 7.42 | IH1: 7.43 | II1: 7.44 | IJ1: 7.45 | IK1: 7.46 | IL1: 7.47 | IM1: 7.48 | IN1: 7.49 | IO1: 7.5 | IP1: 7.51 | IQ1: 7.52 | IR1: 7.53 | IS1: 7.54 | IT1: 7.55 | IU1: 7.56 | IV1: 7.57
A2: =$B$1 -> 5.03 | B2: 2 | C2: =B2+1 -> 3 | D2: 4 | E2: 5 | F2: 6 | G2: 7 | H2: 8 | I2: 9 | J2: 10 | K2: 11 | L2: 12 | M2: 13 | N2: 14 | O2: 15 | P2: 16 | Q2: 17 | R2: 18 | S2: 19 | T2: 20 | U2: 21 | V2: 22 | W2: 23 | X2: 24 | Y2: 25 | Z2: 26 | AA2: 27 | AB2: 28 | AC2: 29 | AD2: 30 | AE2: 31 | AF2: 32 | AG2: 33 | AH2: 34 | AI2: 35 | AJ2: 36 | AK2: 37 | AL2: 38 | AM2: 39 | AN2: 40 | AO2: 41 | AP2: 42 | AQ2: 43 | AR2: 44 | AS2: 45 | AT2: 46 | AU2: 47 | AV2: 48 | AW2: 49 | AX2: 50 | AY2: 51 | AZ2: 52 | BA2: 53 | BB2: 54 | BC2: 55 | BD2: 56 | BE2: 57 | BF2: 58 | BG2: 59 | BH2: 60 | BI2: 61 | BJ2: 62 | BK2: 63 | BL2: 64 | BM2: 65 | BN2: 66 | BO2: 67 | BP2: 68 | BQ2: 69 | BR2: 70 | BS2: 71 | BT2: 72 | BU2: 73 | BV2: 74 | BW2: 75 | BX2: 76 | BY2: 77 | BZ2: 78 | CA2: 79 | CB2: 80 | CC2: 81 | CD2: 82 | CE2: 83 | CF2: 84 | CG2: 85 | CH2: 86 | CI2: 87 | CJ2: 88 | CK2: 89 | CL2: 90 | CM2: 91 | CN2: 92 | CO2: 93 | CP2: 94 | CQ2: 95 | CR2: 96 | CS2: 97 | CT2: 98 | CU2: 99 | CV2: 100 | CW2: 101 | CX2: 102 | CY2: =CX2+1 -> 103 | CZ2: 104 | DA2: 105 | DB2: 106 | DC2: 107 | DD2: 108 | DE2: 109 | DF2: 110 | DG2: 111 | DH2: 112 | DI2: 113 | DJ2: 114 | DK2: 115 | DL2: 116 | DM2: 117 | DN2: 118 | DO2: 119 | DP2: 120 | DQ2: 121 | DR2: 122 | DS2: 123 | DT2: 124 | DU2: 125 | DV2: 126 | DW2: 127 | DX2: 128 | DY2: 129 | DZ2: 130 | EA2: 131 | EB2: 132 | EC2: 133 | ED2: 134 | EE2: =ED2+1 -> 135 | EF2: 136 | EG2: 137 | EH2: 138 | EI2: 139 | EJ2: 140 | EK2: 141 | EL2: 142 | EM2: 143 | EN2: 144 | EO2: 145 | EP2: 146 | EQ2: 147 | ER2: 148 | ES2: 149 | ET2: 150 | EU2: 151 | EV2: 152 | EW2: 153 | EX2: 154 | EY2: 155 | EZ2: 156 | FA2: 157 | FB2: 158 | FC2: 159 | FD2: 160 | FE2: 161 | FF2: 162 | FG2: 163 | FH2: 164 | FI2: 165 | FJ2: 166 | FK2: =FJ2+1 -> 167 | FL2: 168 | FM2: 169 | FN2: 170 | FO2: 171 | FP2: 172 | FQ2: 173 | FR2: 174 | FS2: 175 | FT2: 176 | FU2: 177 | FV2: 178 | FW2: 179 | FX2: 180 | FY2: 181 | FZ2: 182 | GA2: 183 | GB2: 184 | GC2: 185 | GD2: 186 | GE2: 187 | GF2: 188 | GG2: 189 | GH2: 190 | GI2: 191 | GJ2: 192 | GK2: 193 | GL2: 194 | GM2: 195 | GN2: 196 | GO2: 197 | GP2: 198 | GQ2: =GP2+1 -> 199 | GR2: 200 | GS2: 201 | GT2: 202 | GU2: 203 | GV2: 204 | GW2: 205 | GX2: 206 | GY2: 207 | GZ2: 208 | HA2: 209 | HB2: 210 | HC2: 211 | HD2: 212 | HE2: 213 | HF2: 214 | HG2: 215 | HH2: 216 | HI2: 217 | HJ2: 218 | HK2: 219 | HL2: 220 | HM2: 221 | HN2: 222 | HO2: 223 | HP2: 224 | HQ2: 225 | HR2: 226 | HS2: 227 | HT2: 228 | HU2: 229 | HV2: 230 | HW2: =HV2+1 -> 231 | HX2: 232 | HY2: 233 | HZ2: 234 | IA2: 235 | IB2: 236 | IC2: 237 | ID2: 238 | IE2: 239 | IF2: 240 | IG2: 241 | IH2: 242 | II2: 243 | IJ2: 244 | IK2: 245 | IL2: 246 | IM2: 247 | IN2: 248 | IO2: 249 | IP2: 250 | IQ2: 251 | IR2: 252 | IS2: 253 | IT2: 254 | IU2: 255 | IV2: 256
A3: =A2+0.1 -> 5.13
A4: 5.23
A5: 5.33
A6: 5.43
A7: 5.53
A8: 5.63
A9: 5.73
A10: 5.83
A11: 5.93
A12: 6.03
A13: 6.13
A14: 6.23
A15: 6.33
A16: 6.43
A17: 6.53
A18: 6.63
A19: 6.73
A20: 6.83
A21: 6.93
A22: 7.03
A23: 7.13
A24: 7.23
A25: 7.33
A26: 7.43
A27: 7.53
A28: 7.63
A29: 7.73
A30: 7.83
A31: 7.93
A32: 8.03
A33: 8.13
A34: 8.23
A35: 8.33
A36: 8.43
A37: 8.53
A38: 8.63
A39: 8.73
A40: 8.83
A41: 8.93
A42: 9.03
A43: 9.13
A44: 9.23
A45: 9.33
A46: 9.43
A47: 9.53
A48: 9.63
A49: 9.73
A50: 9.83
A51: 9.93
A52: 10.03
A53: 10.13
A54: 10.23
A55: 10.33
A56: 10.43
A57: 10.53
A58: 10.63
A59: 10.73
A60: 10.83
A61: 10.93
A62: 11.03
A63: 11.13
A64: 11.23
A65: 11.33
A66: 11.43
A67: =A66+0.1 -> 11.53
A68: 11.63
A69: 11.73
A70: 11.83
A71: 11.93
A72: 12.03
A73: 12.13
A74: 12.23
A75: 12.33
A76: 12.43
A77: 12.53
A78: 12.63
A79: 12.73
A80: 12.83
A81: 12.93
A82: 13.03
A83: 13.13
A84: 13.23
A85: 13.33
A86: 13.43
A87: 13.53
A88: 13.63
A89: 13.73
A90: 13.83
A91: 13.93
A92: 14.03
A93: 14.13
A94: 14.23
A95: 14.33
A96: 14.43
A97: 14.53
A98: 14.63
A99: 14.73
A100: 14.83
A101: 14.93
A102: 15.03
A103: 15.13
A104: 15.23
A105: 15.33
A106: 15.43
A107: 15.53
A108: 15.63
A109: 15.73
A110: 15.83
A111: 15.93
A112: 16.03
A113: 16.13
A114: 16.23
A115: 16.33
A116: 16.43
A117: 16.53
A118: 16.63
A119: 16.73
A120: 16.83
A121: 16.93
A122: 17.03
A123: 17.13
A124: 17.23
A125: 17.33
A126: 17.43
A127: 17.53
A128: 17.63
A129: 17.73
A130: 17.83
A131: =A130+0.1 -> 17.93
A132: 18.03
A133: 18.13
A134: 18.23
A135: 18.33
A136: 18.43
A137: 18.53
A138: 18.63
A139: 18.73
A140: 18.83
A141: 18.93
A142: 19.03
A143: 19.13
A144: 19.23
A145: 19.33
A146: 19.43
A147: 19.53
A148: 19.63
A149: 19.73
A150: 19.83
A151: 19.93
A152: 20.03
A153: 20.13
A154: 20.23
A155: 20.33
A156: 20.43
A157: 20.53
A158: 20.63
A159: 20.73
A160: 20.83
A161: 20.93
A162: 21.03
A163: 21.13
A164: 21.23
A165: 21.33
A166: 21.43
A167: 21.53
A168: 21.63
A169: 21.73
A170: 21.83
A171: 21.93
A172: 22.03
A173: 22.13
A174: 22.23
A175: 22.33
A176: 22.43
A177: 22.53
A178: 22.63
A179: 22.73
A180: 22.83
A181: 22.93
A182: 23.03
A183: 23.13
A184: 23.23
A185: 23.33
A186: 23.43
A187: 23.53
A188: 23.63
A189: 23.73
A190: 23.83
A191: 23.93
A192: 24.03
A193: 24.13
A194: 24.23
A195: =A194+0.1 -> 24.33
A196: 24.43
A197: 24.53
A198: 24.63
A199: 24.73
A200: 24.83
... 801 more rows

Sheet SIZE_Test 96dpi to mm to 96dpi
A1: 96dpi | B1: 76 | C1: =B3 -> 0 | D1: =C1+1 -> 1 | E1: 2 | F1: 3 | G1: 4 | H1: 5 | I1: 6 | J1: 7 | K1: 8 | L1: 9 | M1: 10 | N1: 11 | O1: 12 | P1: 13 | Q1: 14 | R1: 15 | S1: 16 | T1: 17 | U1: 18 | V1: 19 | W1: 20 | X1: 21 | Y1: 22 | Z1: 23 | AA1: 24 | AB1: 25 | AC1: 26 | AD1: 27 | AE1: 28 | AF1: 29 | AG1: 30 | AH1: 31 | AI1: 32 | AJ1: 33 | AK1: 34 | AL1: 35 | AM1: 36 | AN1: 37 | AO1: 38 | AP1: 39 | AQ1: 40 | AR1: 41 | AS1: 42 | AT1: 43 | AU1: 44 | AV1: 45 | AW1: 46 | AX1: 47 | AY1: 48 | AZ1: 49 | BA1: 50 | BB1: 51 | BC1: 52 | BD1: 53 | BE1: 54 | BF1: 55 | BG1: 56 | BH1: 57 | BI1: 58 | BJ1: 59 | BK1: 60 | BL1: 61 | BM1: 62 | BN1: 63 | BO1: 64 | BP1: =BO1+1 -> 65 | BQ1: 66 | BR1: 67 | BS1: 68 | BT1: 69 | BU1: 70 | BV1: 71 | BW1: 72 | BX1: 73 | BY1: 74 | BZ1: 75 | CA1: 76 | CB1: 77 | CC1: 78 | CD1: 79 | CE1: 80 | CF1: 81 | CG1: 82 | CH1: 83 | CI1: 84 | CJ1: 85 | CK1: 86 | CL1: 87 | CM1: 88 | CN1: 89 | CO1: 90 | CP1: 91 | CQ1: 92 | CR1: 93 | CS1: 94 | CT1: 95 | CU1: 96 | CV1: 97 | CW1: 98 | CX1: 99 | CY1: 100 | CZ1: 101 | DA1: 102 | DB1: 103 | DC1: 104 | DD1: 105 | DE1: 106 | DF1: 107 | DG1: 108 | DH1: 109 | DI1: 110 | DJ1: 111 | DK1: 112 | DL1: 113 | DM1: 114 | DN1: 115 | DO1: 116 | DP1: 117 | DQ1: 118 | DR1: 119 | DS1: 120 | DT1: 121 | DU1: 122 | DV1: 123 | DW1: 124 | DX1: 125 | DY1: 126 | DZ1: 127 | EA1: 128 | EB1: =EA1+1 -> 129 | EC1: 130 | ED1: 131 | EE1: 132 | EF1: 133 | EG1: 134 | EH1: 135 | EI1: 136 | EJ1: 137 | EK1: 138 | EL1: 139 | EM1: 140 | EN1: 141 | EO1: 142 | EP1: 143 | EQ1: 144 | ER1: 145 | ES1: 146 | ET1: 147 | EU1: 148 | EV1: 149 | EW1: 150 | EX1: 151 | EY1: 152 | EZ1: 153 | FA1: 154 | FB1: 155 | FC1: 156 | FD1: 157 | FE1: 158 | FF1: 159 | FG1: 160 | FH1: 161 | FI1: 162 | FJ1: 163 | FK1: 164 | FL1: 165 | FM1: 166 | FN1: 167 | FO1: 168 | FP1: 169 | FQ1: 170 | FR1: 171 | FS1: 172 | FT1: 173 | FU1: 174 | FV1: 175 | FW1: 176 | FX1: 177 | FY1: 178 | FZ1: 179 | GA1: 180 | GB1: 181 | GC1: 182 | GD1: 183 | GE1: 184 | GF1: 185 | GG1: 186 | GH1: 187 | GI1: 188 | GJ1: 189 | GK1: 190 | GL1: 191 | GM1: 192 | GN1: =GM1+1 -> 193 | GO1: 194 | GP1: 195 | GQ1: 196 | GR1: 197 | GS1: 198 | GT1: 199 | GU1: 200 | GV1: 201 | GW1: 202 | GX1: 203 | GY1: 204 | GZ1: 205 | HA1: 206 | HB1: 207 | HC1: 208 | HD1: 209 | HE1: 210 | HF1: 211 | HG1: 212 | HH1: 213 | HI1: 214 | HJ1: 215 | HK1: 216 | HL1: 217 | HM1: 218 | HN1: 219 | HO1: 220 | HP1: 221 | HQ1: 222 | HR1: 223 | HS1: 224 | HT1: 225 | HU1: 226 | HV1: 227 | HW1: 228 | HX1: 229 | HY1: 230 | HZ1: 231 | IA1: 232 | IB1: 233 | IC1: 234 | ID1: 235 | IE1: 236 | IF1: 237 | IG1: 238 | IH1: 239 | II1: 240 | IJ1: 241 | IK1: 242 | IL1: 243 | IM1: 244 | IN1: 245 | IO1: 246 | IP1: 247 | IQ1: 248 | IR1: 249 | IS1: 250 | IT1: 251 | IU1: 252 | IV1: 253
A2: 19 | B2: Startwert | C2: 0 | D2: 1 | E2: 2 | F2: 3 | G2: 4 | H2: 5 | I2: 6 | J2: 7 | K2: 8 | L2: 9 | M2: 10 | N2: 11 | O2: 12 | P2: 13 | Q2: 14 | R2: 15 | S2: 16 | T2: 17 | U2: 18 | V2: 19 | W2: 20 | X2: 21 | Y2: 22 | Z2: 23 | AA2: 24 | AB2: 25 | AC2: 26 | AD2: 27 | AE2: 28 | AF2: 29 | AG2: 30 | AH2: 31 | AI2: 32 | AJ2: 33 | AK2: 34 | AL2: 35 | AM2: 36 | AN2: 37 | AO2: 38 | AP2: 39 | AQ2: 40 | AR2: 41 | AS2: 42 | AT2: 43 | AU2: 44 | AV2: 45 | AW2: 46 | AX2: 47 | AY2: 48 | AZ2: 49 | BA2: 50 | BB2: 51 | BC2: 52 | BD2: 53 | BE2: 54 | BF2: 55 | BG2: 56 | BH2: 57 | BI2: 58 | BJ2: 59 | BK2: 60 | BL2: 61 | BM2: 62 | BN2: 63 | BO2: 64 | BP2: 65 | BQ2: 66 | BR2: 67 | BS2: 68 | BT2: 69 | BU2: 70 | BV2: 71 | BW2: 72 | BX2: 73 | BY2: 74 | BZ2: 75 | CA2: 76 | CB2: 77 | CC2: 78 | CD2: 79 | CE2: 80 | CF2: 81 | CG2: 82 | CH2: 83 | CI2: 84 | CJ2: 85 | CK2: 86 | CL2: 87 | CM2: 88 | CN2: 89 | CO2: 90 | CP2: 91 | CQ2: 92 | CR2: 93 | CS2: 94 | CT2: 95 | CU2: 96 | CV2: 97 | CW2: 98 | CX2: 99 | CY2: 100 | CZ2: 101 | DA2: 102 | DB2: 103 | DC2: 104 | DD2: 105 | DE2: 106 | DF2: 107 | DG2: 108 | DH2: 109 | DI2: 110 | DJ2: 111 | DK2: 112 | DL2: 113 | DM2: 114 | DN2: 115 | DO2: 116 | DP2: 117 | DQ2: 118 | DR2: 119 | DS2: 120 | DT2: 121 | DU2: 122 | DV2: 123 | DW2: 124 | DX2: 125 | DY2: 126 | DZ2: 127 | EA2: 128 | EB2: 129 | EC2: 130 | ED2: 131 | EE2: 132 | EF2: 133 | EG2: 134 | EH2: 135 | EI2: 136 | EJ2: 137 | EK2: 138 | EL2: 139 | EM2: 140 | EN2: 141 | EO2: 142 | EP2: 143 | EQ2: 144 | ER2: 145 | ES2: 146 | ET2: 147 | EU2: 148 | EV2: 149 | EW2: 150 | EX2: 151 | EY2: 152 | EZ2: 153 | FA2: 154 | FB2: 155 | FC2: 156 | FD2: 157 | FE2: 158 | FF2: 159 | FG2: 160 | FH2: 161 | FI2: 162 | FJ2: 163 | FK2: 164 | FL2: 165 | FM2: 166 | FN2: 167 | FO2: 168 | FP2: 169 | FQ2: 170 | FR2: 171 | FS2: 172 | FT2: 173 | FU2: 174 | FV2: 175 | FW2: 176 | FX2: 177 | FY2: 178 | FZ2: 179 | GA2: 180 | GB2: 181 | GC2: 182 | GD2: 183 | GE2: 184 | GF2: 185 | GG2: 186 | GH2: 187 | GI2: 188 | GJ2: 189 | GK2: 190 | GL2: 191 | GM2: 192 | GN2: 193 | GO2: 194 | GP2: 195 | GQ2: 196 | GR2: 197 | GS2: 198 | GT2: 199 | GU2: 200 | GV2: 201 | GW2: 202 | GX2: 203 | GY2: 204 | GZ2: 205 | HA2: 206 | HB2: 207 | HC2: 208 | HD2: 209 | HE2: 210 | HF2: 211 | HG2: 212 | HH2: 213 | HI2: 214 | HJ2: 215 | HK2: 216 | HL2: 217 | HM2: 218 | HN2: 219 | HO2: 220 | HP2: 221 | HQ2: 222 | HR2: 223 | HS2: 224 | HT2: 225 | HU2: 226 | HV2: 227 | HW2: 228 | HX2: 229 | HY2: 230 | HZ2: 231 | IA2: 232 | IB2: 233 | IC2: 234 | ID2: 235 | IE2: 236 | IF2: 237 | IG2: 238 | IH2: 239 | II2: 240 | IJ2: 241 | IK2: 242 | IL2: 243 | IM2: 244 | IN2: 245 | IO2: 246 | IP2: 247 | IQ2: 248 | IR2: 249 | IS2: 250 | IT2: 251 | IU2: 252 | IV2: 253
A3: 19 | B3: 0
A4: =B3 -> 0 | B4: 0
A5: =A4+1 -> 1 | B5: 1
A6: 2 | B6: 2
A7: 3 | B7: 3
A8: 4 | B8: 4
A9: 5 | B9: 5
A10: 6 | B10: 6
A11: 7 | B11: 7
A12: 8 | B12: 8
A13: 9 | B13: 9
A14: 10 | B14: 10
A15: 11 | B15: 11
A16: 12 | B16: 12
A17: 13 | B17: 13
A18: 14 | B18: 14
A19: 15 | B19: 15
A20: 16 | B20: 16
A21: 17 | B21: 17
A22: 18 | B22: 18
A23: 19 | B23: 19
A24: 20 | B24: 20
A25: 21 | B25: 21
A26: 22 | B26: 22
A27: 23 | B27: 23
A28: 24 | B28: 24
A29: 25 | B29: 25
A30: 26 | B30: 26
A31: 27 | B31: 27
A32: 28 | B32: 28
A33: 29 | B33: 29
A34: 30 | B34: 30
A35: 31 | B35: 31
A36: 32 | B36: 32
A37: 33 | B37: 33
A38: 34 | B38: 34
A39: 35 | B39: 35
A40: 36 | B40: 36
A41: 37 | B41: 37
A42: 38 | B42: 38
A43: 39 | B43: 39
A44: 40 | B44: 40
A45: 41 | B45: 41
A46: 42 | B46: 42
A47: 43 | B47: 43
A48: 44 | B48: 44
A49: 45 | B49: 45
A50: 46 | B50: 46
A51: 47 | B51: 47
A52: 48 | B52: 48
A53: 49 | B53: 49
A54: 50 | B54: 50
A55: 51 | B55: 51
A56: 52 | B56: 52
A57: 53 | B57: 53
A58: 54 | B58: 54
A59: 55 | B59: 55
A60: 56 | B60: 56
A61: 57 | B61: 57
A62: 58 | B62: 58
A63: 59 | B63: 59
A64: 60 | B64: 60
A65: 61 | B65: 61
A66: 62 | B66: 62
A67: 63 | B67: 63
A68: 64 | B68: 64
A69: =A68+1 -> 65 | B69: 65
A70: 66 | B70: 66
A71: 67 | B71: 67
A72: 68 | B72: 68
A73: 69 | B73: 69
A74: 70 | B74: 70
A75: 71 | B75: 71
A76: 72 | B76: 72
A77: 73 | B77: 73
A78: 74 | B78: 74
A79: 75 | B79: 75
A80: 76 | B80: 76
A81: 77 | B81: 77
A82: 78 | B82: 78
A83: 79 | B83: 79
A84: 80 | B84: 80
A85: 81 | B85: 81
A86: 82 | B86: 82
A87: 83 | B87: 83
A88: 84 | B88: 84
A89: 85 | B89: 85
A90: 86 | B90: 86
A91: 87 | B91: 87
A92: 88 | B92: 88
A93: 89 | B93: 89
A94: 90 | B94: 90
A95: 91 | B95: 91
A96: 92 | B96: 92
A97: 93 | B97: 93
A98: 94 | B98: 94
A99: 95 | B99: 95
A100: 96 | B100: 96
A101: 97 | B101: 97
A102: 98 | B102: 98
A103: 99 | B103: 99
A104: 100 | B104: 100
A105: 101 | B105: 101
A106: 102 | B106: 102
A107: 103 | B107: 103
A108: 104 | B108: 104
A109: 105 | B109: 105
A110: 106 | B110: 106
A111: 107 | B111: 107
A112: 108 | B112: 108
A113: 109 | B113: 109
A114: 110 | B114: 110
A115: 111 | B115: 111
A116: 112 | B116: 112
A117: 113 | B117: 113
A118: 114 | B118: 114
A119: 115 | B119: 115
A120: 116 | B120: 116
A121: 117 | B121: 117
A122: 118 | B122: 118
A123: 119 | B123: 119
A124: 120 | B124: 120
A125: 121 | B125: 121
A126: 122 | B126: 122
A127: 123 | B127: 123
A128: 124 | B128: 124
A129: 125 | B129: 125
A130: 126 | B130: 126
A131: 127 | B131: 127
A132: 128 | B132: 128
A133: =A132+1 -> 129 | B133: 129
A134: 130 | B134: 130
A135: 131 | B135: 131
A136: 132 | B136: 132
A137: 133 | B137: 133
A138: 134 | B138: 134
A139: 135 | B139: 135
A140: 136 | B140: 136
A141: 137 | B141: 137
A142: 138 | B142: 138
A143: 139 | B143: 139
A144: 140 | B144: 140
A145: 141 | B145: 141
A146: 142 | B146: 142
A147: 143 | B147: 143
A148: 144 | B148: 144
A149: 145 | B149: 145
A150: 146 | B150: 146
A151: 147 | B151: 147
A152: 148 | B152: 148
A153: 149 | B153: 149
A154: 150 | B154: 150
A155: 151 | B155: 151
A156: 152 | B156: 152
A157: 153 | B157: 153
A158: 154 | B158: 154
A159: 155 | B159: 155
A160: 156 | B160: 156
A161: 157 | B161: 157
A162: 158 | B162: 158
A163: 159 | B163: 159
A164: 160 | B164: 160
A165: 161 | B165: 161
A166: 162 | B166: 162
A167: 163 | B167: 163
A168: 164 | B168: 164
A169: 165 | B169: 165
A170: 166 | B170: 166
A171: 167 | B171: 167
A172: 168 | B172: 168
A173: 169 | B173: 169
A174: 170 | B174: 170
A175: 171 | B175: 171
A176: 172 | B176: 172
A177: 173 | B177: 173
A178: 174 | B178: 174
A179: 175 | B179: 175
A180: 176 | B180: 176
A181: 177 | B181: 177
A182: 178 | B182: 178
A183: 179 | B183: 179
A184: 180 | B184: 180
A185: 181 | B185: 181
A186: 182 | B186: 182
A187: 183 | B187: 183
A188: 184 | B188: 184
A189: 185 | B189: 185
A190: 186 | B190: 186
A191: 187 | B191: 187
A192: 188 | B192: 188
A193: 189 | B193: 189
A194: 190 | B194: 190
A195: 191 | B195: 191
A196: 192 | B196: 192
A197: =A196+1 -> 193 | B197: 193
A198: 194 | B198: 194
A199: 195 | B199: 195
A200: 196 | B200: 196
... 840 more rows

Sheet SIZE_dpi-Formel
A1: =IF(B6=1,B4,B5) -> mm | C1: =$B$3 -> 0 | D1: 0 | E1: 0 | F1: 0 | G1: 0 | H1: 0 | I1: 0 | J1: 0 | K1: 0
B2: 20
B3: =IF(B6=0,0,B2) -> 0
B4: 96dpi
B5: mm
B6: 0

Sheet COPY
B2: COPY help ...
